bitfinex/quotes_ETHUSD_20240714
["timestamp","ask_amount","ask_price","bid_price","bid_amount"]
[1720917718127,1.42790456,3188.9,3187.6,1.909]
[1720917718128,1.0864496,3188.8,3187.6,1.909]
[1720917718919,0.3286295,3188.7,3187.6,4.909]
[1720917719110,0.3286295,3188.7,3187.6,1.909]
[1720917719111,1.0864496,3188.6,3187.6,1.909]
[1720917719316,1.0864496,3188.6,3187.6,4.909]
[1720917720384,2.3281,3188.5,3187.6,4.909]
[1720917720588,1.42790456,3188.4,3187.6,1.909]
[1720917720819,1.08677514,3188.3,3187.6,1.909]
[1720917721125,1.08677514,3188.2,3187.6,1.909]
[1720917721324,0.34145496,3188.4,3187.6,1.909]
[1720917721499,1.08676961,3188.3,3187.6,1.909]
[1720917721702,1.08676961,3188.2,3187.6,1.909]
[1720917721908,1.08676961,3188.1,3187.6,1.909]
[1720917722234,0.34145496,3188.4,3187.6,1.909]
[1720917722523,1.08676543,3188.3,3187.6,1.909]
[1720917722705,1.08676543,3188.2,3187.6,1.909]
[1720917722913,1.08676543,3188.1,3187.6,1.909]
[1720917723128,1.0867617,3188.0,3187.6,1.909]
[1720917723291,2.3281,3188.5,3187.6,1.909]
[1720917723486,1.3196057,3188.4,3187.6,1.909]
[1720917723691,1.0867957,3188.3,3187.6,1.909]
[1720917724199,1.08680183,3188.2,3187.6,1.909]
[1720917724442,1.08680183,3188.1,3187.6,1.909]
[1720917724640,1.08680183,3188.3,3187.6,1.909]
[1720917724833,1.08680183,3188.2,3187.6,1.909]
[1720917725033,1.08680183,3188.1,3187.6,1.909]
[1720917725237,1.08680183,3188.0,3187.6,1.909]
[1720917725545,0.36477118,3188.3,3187.6,1.909]
[1720917725754,1.08679297,3188.2,3187.6,1.909]
[1720917725909,1.08679297,3188.1,3187.6,1.909]
[1720917726108,1.08679297,3188.2,3187.6,1.909]
[1720917726735,0.36477118,3188.3,3187.6,1.909]
[1720917726952,1.08679697,3188.1,3187.6,1.909]
[1720917727166,0.36477118,3188.3,3187.6,1.909]
[1720917727750,2.3281,3188.5,3187.5,2.57252579]
[1720917727913,2.3281,3188.5,3187.7,1.909]
[1720917729737,1.08676282,3188.4,3187.7,1.909]
[1720917730050,1.08676282,3188.3,3187.7,1.909]
[1720917730228,2.3281,3188.5,3187.7,1.909]
[1720917730415,1.08675431,3188.4,3187.7,1.909]
[1720917730612,1.08675431,3188.3,3187.7,2.35715016]
[1720917730932,2.3281,3188.5,3187.7,2.35715016]
[1720917731116,1.08675638,3188.4,3187.7,2.35715016]
[1720917731320,1.08675638,3188.3,3187.7,2.35715016]
[1720917731570,1.08675638,3188.4,3187.7,2.35715016]
[1720917731722,1.08675421,3188.3,3187.7,2.35715016]
[1720917731927,2.3281,3188.5,3187.7,2.35715016]
[1720917732253,1.31957232,3188.4,3187.7,1.909]
[1720917732419,1.08676232,3188.3,3187.7,1.909]
[1720917732620,1.08676232,3188.3,3187.4,3.0]
[1720917733055,1.08687211,3188.2,3187.4,3.0]
[1720917733259,0.23281,3188.4,3187.4,3.0]
[1720917733260,1.08688395,3188.1,3187.4,3.0]
[1720917733621,1.08688395,3188.0,3187.4,3.0]
[1720917733843,1.08688395,3188.3,3187.4,3.0]
[1720917734054,1.08688395,3188.2,3187.4,3.0]
[1720917734226,0.32866286,3188.1,3187.4,3.0]
[1720917734428,1.08688402,3188.0,3187.4,3.0]
[1720917734643,1.08688402,3187.9,3187.4,3.0]
[1720917734846,1.08688402,3188.0,3187.4,3.0]
[1720917735043,0.32866286,3188.1,3187.4,3.0]
[1720917735248,1.08688668,3188.0,3187.4,3.0]
[1720917735447,1.08688668,3187.9,3187.4,3.0]
[1720917735649,1.08688668,3188.0,3187.4,4.232498]
[1720917735953,1.08688668,3187.9,3187.4,6.742378]
[1720917736157,0.32866286,3188.1,3187.4,6.742378]
[1720917736370,1.0868097,3188.0,3187.5,2.57253636]
[1720917736521,0.32866286,3188.1,3187.5,2.57253636]
[1720917736716,0.32866286,3188.1,3187.6,0.68050344]
[1720917737376,1.08677559,3188.0,3187.6,0.68050344]
[1720917737672,0.32866286,3188.1,3187.6,0.68050344]
[1720917738043,1.086788,3188.0,3187.6,0.68050344]
[1720917738348,0.32866286,3188.1,3187.6,0.68050344]
[1720917738589,1.08676857,3188.0,3187.7,0.32530398]
[1720917738735,0.32866286,3188.1,3187.7,0.32530398]
[1720917738937,1.08680492,3188.0,3187.7,0.38803584]
[1720917739152,0.32866286,3188.1,3187.7,0.38803584]
[1720917739435,1.08676259,3188.0,3187.7,0.38803584]
[1720917739667,1.08676259,3187.9,3187.7,0.38803584]
[1720917739886,1.08676259,3188.0,3187.7,0.32530398]
[1720917740037,1.08676258,3187.9,3187.7,0.32530398]
[1720917740231,0.32866286,3188.1,3187.7,0.32530398]
[1720917740476,1.08677865,3188.0,3187.7,0.32530398]
[1720917740639,1.08677865,3187.9,3187.7,0.32530398]
[1720917740949,0.32866286,3188.1,3187.7,0.32530398]
[1720917741155,1.08676616,3188.0,3187.7,0.32530398]
[1720917741372,0.32866286,3188.1,3187.6,0.68050344]
[1720917741373,1.08676616,3187.9,3187.6,0.68050344]
[1720917741532,1.08676616,3188.0,3187.6,0.68050344]
[1720917744052,0.32866286,3188.1,3187.6,0.68050344]
[1720917744665,1.0868806,3187.9,3187.6,0.68050344]
[1720917744866,1.08687991,3187.8,3187.6,0.68050344]
[1720917745190,0.32866286,3188.1,3187.5,2.5098]
[1720917745191,1.08687363,3187.7,3187.5,2.5098]
[1720917745493,0.32866286,3188.1,3187.5,2.5098]
[1720917745494,1.08687363,3187.6,3187.5,2.5098]
[1720917745792,1.08687363,3188.0,3187.5,2.5098]
[1720917745960,1.08687363,3187.9,3187.5,2.5098]
[1720917746157,1.08687363,3188.0,3187.5,3.8655228]
[1720917746505,1.08687363,3187.9,3187.5,3.8655228]
[1720917746797,1.08687363,3187.8,3187.5,3.8655228]
[1720917746995,1.08687363,3188.0,3187.5,3.8655228]
[1720917747153,1.08687363,3187.9,3187.5,3.8655228]
[1720917747354,1.08687363,3188.0,3187.5,3.8655228]
[1720917747595,1.08687363,3187.9,3187.5,3.8655228]
[1720917747790,1.08687363,3188.0,3187.5,3.8655228]
[1720917747954,1.08687363,3187.9,3187.5,3.8655228]
[1720917748153,1.08687363,3188.0,3187.5,3.8655228]
[1720917748385,0.32866286,3188.1,3187.5,3.8655228]
[1720917748566,0.32866286,3188.1,3186.7,0.15781831]
[1720917748567,1.08687974,3188.0,3187.6,0.796]
[1720917748871,0.32866286,3188.1,3187.6,0.796]
[1720917749070,1.08698184,3188.0,3187.6,0.796]
[1720917749273,1.08698184,3187.9,3187.6,0.796]
[1720917749508,1.08698184,3187.8,3187.6,0.796]
[1720917749808,1.08698184,3187.7,3187.6,0.796]
[1720917750406,2.4549,3187.6,3187.3,0.796]
[1720917750570,1.08698184,3187.5,3186.6,9.69801]
[1720917751588,1.08710204,3187.4,3186.6,9.69801]
[1720917751786,2.80908818,3187.6,3186.6,9.69801]
[1720917752004,1.08710963,3187.5,3186.6,9.69801]
[1720917752188,1.08710963,3187.4,3186.7,1.220854]
[1720917752389,1.08710963,3187.3,3186.7,3.731284]
[1720917752626,1.08710963,3187.2,3186.8,3.0]
[1720917752788,1.08710963,3187.1,3186.8,3.0]
[1720917753121,1.08710963,3187.0,3186.8,3.0]
[1720917753328,1.08710963,3186.9,3186.8,4.0918784]
[1720917753728,1.08710963,3186.9,3186.8,1.0918784]
[1720917754925,1.08709987,3186.9,3186.8,1.0918784]
[1720917755612,1.08709987,3186.9,3186.6,4.1875]
[1720917755922,0.32871124,3187.7,3186.3,2.51068]
[1720917755923,1.08709987,3186.8,3186.3,2.51068]
[1720917756129,1.08709987,3187.0,3186.3,2.51068]
[1720917756609,1.08709987,3187.0,3186.2,4.1875]
[1720917756982,1.08709987,3187.0,3186.3,3.0]
[1720917757297,1.08709987,3187.0,3186.3,3.969837]
[1720917757816,1.08709987,3186.9,3186.3,3.969837]
[1720917758017,2.4988,3187.4,3186.3,3.969837]
[1720917758018,1.08709987,3187.3,3186.3,3.969837]
[1720917758425,1.08709987,3187.3,3186.3,3.0]
[1720917761739,2.4988,3187.4,3186.3,3.0]
[1720917761958,1.08725018,3187.3,3186.3,3.0]
[1720917762159,1.08726498,3187.2,3186.2,4.1875]
[1720917762309,3.58606498,3187.1,3186.2,1.91]
[1720917762508,1.44587148,3187.0,3186.2,1.91]
[1720917762709,1.08726498,3186.9,3186.2,1.91]
[1720917764952,0.3586065,3187.0,3186.2,1.91]
[1720917765264,1.08738984,3186.9,3186.2,1.91]
[1720917765426,1.08738984,3186.8,3186.2,1.91]
[1720917765745,1.08738984,3186.7,3186.2,1.91]
[1720917765946,1.08738984,3186.6,3186.2,1.91]
[1720917766116,1.08738984,3186.5,3186.2,1.91]
[1720917766320,0.3586065,3187.0,3186.2,1.91]
[1720917766321,1.08738984,3186.4,3186.2,1.91]
[1720917766528,0.3586065,3187.0,3186.2,1.91]
[1720917766733,1.37311275,3186.9,3186.2,1.91]
[1720917766935,1.0873721,3186.8,3186.2,1.91]
[1720917767153,1.0873721,3186.7,3186.2,1.91]
[1720917767356,1.0873721,3186.6,3186.2,1.91]
[1720917767554,2.4988,3187.1,3186.2,2.401]
[1720917767764,1.08728734,3187.0,3186.2,2.401]
[1720917768056,1.08728734,3186.9,3186.2,2.401]
[1720917768262,2.4988,3187.1,3186.2,2.401]
[1720917768263,1.08728734,3187.0,3186.2,2.401]
[1720917768474,1.08729708,3186.9,3186.2,2.401]
[1720917768668,1.08729708,3186.8,3186.2,2.401]
[1720917768859,1.08729708,3186.7,3186.2,1.91]
[1720917769175,1.08729708,3186.6,3186.2,1.91]
[1720917769329,2.4988,3187.1,3186.2,1.91]
[1720917769525,1.08727689,3187.0,3186.2,1.91]
[1720917769825,1.08727689,3186.9,3186.0,3.0]
[1720917770029,0.35860769,3186.9,3186.0,3.0]
[1720917770271,1.08727689,3186.8,3186.0,3.0]
[1720917771670,1.08729674,3186.7,3186.0,5.51097]
[1720917771855,1.08729496,3186.6,3186.0,5.51097]
[1720917772029,1.08729496,3186.5,3186.0,5.51097]
[1720917772236,2.4988,3187.1,3186.1,1.03028]
[1720917772463,1.08728681,3187.0,3186.2,2.2808]
[1720917772736,1.08728681,3186.9,3186.3,2.51069]
[1720917772969,0.3287939,3187.3,3186.3,2.51069]
[1720917772970,1.08728681,3186.8,3186.3,2.51069]
[1720917773268,1.08728681,3187.2,3186.3,2.51069]
[1720917773569,1.08728681,3187.1,3186.4,0.670149]
[1720917773768,1.08728681,3187.2,3186.4,0.670149]
[1720917774077,1.08728681,3187.1,3186.4,0.670149]
[1720917774272,1.08728681,3187.0,3186.4,0.670149]
[1720917774479,1.08728681,3186.9,3186.4,0.670149]
[1720917774729,1.08728681,3186.8,3186.4,0.670149]
[1720917775015,1.08727727,3186.7,3186.4,0.670149]
[1720917775176,1.08727727,3186.6,3186.4,0.670149]
[1720917775380,0.3287939,3187.3,3186.5,0.3180879]
[1720917775611,1.08726611,3187.2,3186.4,0.670149]
[1720917775836,1.08726611,3187.1,3186.2,2.2808]
[1720917775975,1.08726611,3187.2,3186.2,2.2808]
[1720917776180,2.3765,3187.1,3186.2,2.2808]
[1720917776415,1.08726611,3187.0,3186.2,2.2808]
[1720917778213,1.08726611,3187.0,3186.1,1.91]
[1720917778431,1.43376407,3186.9,3185.9,5.3485]
[1720917778640,1.08738746,3186.8,3185.9,5.3485]
[1720917779795,2.3765,3186.7,3185.7,1.91]
[1720917780032,2.3765,3186.7,3185.3,7.86003]
[1720917780033,1.43377621,3186.6,3185.3,7.86003]
[1720917780251,1.08738746,3186.5,3185.3,7.86003]
[1720917780913,0.34638875,3186.6,3185.3,7.86003]
[1720917781225,1.3598463,3186.5,3185.4,0.786003]
[1720917781531,1.08755743,3186.4,3185.4,0.786003]
[1720917781834,1.08755743,3186.3,3185.4,0.786003]
[1720917782055,1.08755743,3186.2,3185.3,5.3485]
[1720917782251,3.46405743,3186.1,3185.3,2.3485]
[1720917782399,1.08755743,3186.0,3185.3,2.3485]
[1720917783261,1.08755743,3186.0,3185.1,1.91]
[1720917784124,2.3765,3186.1,3185.1,1.91]
[1720917784340,1.08766324,3186.0,3185.1,1.91]
[1720917784583,2.3765,3186.1,3185.2,0.677026]
[1720917784700,1.08764107,3186.0,3185.3,2.3485]
[1720917784899,1.08764107,3185.9,3185.3,2.3485]
[1720917785196,1.08764107,3185.8,3185.3,2.3485]
[1720917785401,2.3765,3186.5,3185.4,0.5537106]
[1720917785402,1.08764107,3185.7,3185.4,0.5537106]
[1720917785739,2.3765,3186.5,3185.3,4.86003]
[1720917785740,1.08764107,3185.6,3185.3,4.86003]
[1720917785945,1.08764107,3185.5,3185.3,4.86003]
[1720917786102,1.08764107,3185.4,3185.3,4.86003]
[1720917786438,1.08764107,3185.4,3185.3,3.325503]
[1720917787141,1.08767337,3185.4,3185.3,3.325503]
[1720917787440,2.3765,3186.5,3185.3,3.325503]
[1720917787614,2.3765,3186.5,3185.3,2.3485]
[1720917787615,1.08767538,3186.4,3185.3,2.3485]
[1720917787800,1.08767538,3186.3,3185.3,2.3485]
[1720917788102,1.08767538,3186.2,3185.3,2.3485]
[1720917788435,2.06803764,3187.3,3185.2,3.0]
[1720917788436,3.46417538,3186.1,3185.2,3.0]
[1720917788613,1.08767538,3186.0,3185.1,4.91]
[1720917790610,2.72291754,3186.1,3185.1,4.91]
[1720917790856,1.08767008,3186.0,3185.1,4.91]
[1720917791147,1.08767008,3185.9,3185.1,4.91]
[1720917791302,1.08767008,3186.0,3185.1,4.91]
[1720917792841,1.08767008,3186.0,3185.1,3.0]
[1720917793984,2.72291754,3186.1,3185.1,3.0]
[1720917794273,1.08771016,3186.0,3185.1,3.0]
[1720917794429,2.72291754,3186.1,3185.1,3.0]
[1720917794632,1.08769541,3186.0,3185.6,0.797]
[1720917794830,1.46875671,3186.0,3185.6,0.797]
[1720917795047,1.08769541,3185.9,3185.6,0.797]
[1720917797374,1.08772064,3185.8,3185.6,0.797]
[1720917797571,1.08772064,3185.7,3185.6,0.797]
[1720917797734,1.08772064,3185.9,3185.6,0.797]
[1720917798167,1.47224883,3185.9,3185.4,0.797]
[1720917798373,2.4906,3185.7,3184.6,2.408]
[1720917798584,1.08772064,3185.6,3185.1,0.797]
[1720917799460,1.08772064,3185.6,3184.3,2.408]
[1720917799786,2.92813206,3185.5,3184.7,0.797]
[1720917799987,1.08772064,3185.4,3184.9,0.797]
[1720917800350,1.08772064,3185.4,3184.8,2.408]
[1720917800686,2.81909809,3185.8,3184.8,2.408]
[1720917800982,1.08781575,3185.3,3184.8,2.408]
[1720917801135,1.08780221,3185.2,3184.9,0.432]
[1720917801335,1.08773468,3185.1,3184.9,0.432]
[1720917801649,1.08781575,3185.3,3184.9,0.432]
[1720917801966,1.08771745,3185.2,3185.1,1.912]
[1720917802128,1.08781575,3185.3,3185.1,1.912]
[1720917802129,1.08781575,3185.3,3185.1,4.32]
[1720917802328,1.08781575,3185.3,3185.2,0.683175]
[1720917802745,2.17542965,3185.3,3185.2,3.194785]
[1720917802947,1.08781575,3185.3,3185.2,3.194785]
[1720917806355,2.17542757,3185.3,3185.2,3.194785]
[1720917807568,2.17541525,3185.3,3185.2,3.194785]
[1720917807774,2.17541525,3185.3,3185.2,0.683175]
[1720917807984,1.08781575,3185.3,3185.1,4.32]
[1720917808136,1.08759804,3185.2,3185.1,4.32]
[1720917808442,1.08759804,3185.2,3184.7,6.83201]
[1720917808649,1.08759804,3185.2,3184.8,3.0]
[1720917809235,1.08759804,3185.2,3184.8,6.495121]
[1720917809771,1.08759804,3185.2,3184.8,3.983201]
[1720917810748,1.08778803,3185.1,3184.8,3.983201]
[1720917810969,1.08778803,3185.0,3184.8,3.983201]
[1720917811288,1.08778803,3184.9,3184.8,3.983201]
[1720917813432,3.57838803,3184.9,3184.1,2.51242]
[1720917813734,1.08778803,3184.8,3184.1,4.42442]
[1720917814554,1.08778803,3184.8,3184.3,2.51229]
[1720917814757,1.08778803,3184.8,3184.5,1.912]
[1720917817358,0.32846032,3184.9,3184.5,1.912]
[1720917817559,1.08790502,3184.8,3184.5,1.912]
[1720917817856,1.08786326,3184.7,3184.5,1.912]
[1720917818063,1.08786326,3184.6,3184.5,1.912]
[1720917818249,1.08786326,3184.6,3184.5,2.3795519]
[1720917820467,0.32846032,3184.9,3184.5,2.3795519]
[1720917820671,0.32846032,3184.9,3184.8,0.797]
[1720917820845,1.416297,3184.9,3184.8,0.797]
[1720917821034,1.416297,3184.9,3184.8,3.30893]
[1720917821238,1.41619917,3184.9,3184.8,3.891029]
[1720917821840,1.41616455,3184.9,3184.8,3.891029]
[1720917822351,1.41611167,3184.9,3184.8,3.891029]
[1720917822572,1.41611167,3184.9,3184.8,5.006029]
[1720917823282,1.41611167,3184.9,3184.8,2.494099]
[1720917823440,1.41611167,3184.9,3184.8,1.912]
[1720917824139,1.41633273,3184.9,3184.8,1.912]
[1720917827592,1.41633549,3184.9,3184.8,1.912]
[1720917827763,0.32846032,3184.9,3184.8,1.912]
[1720917828485,0.32846032,3184.9,3184.4,1.912]
[1720917828486,1.4163498,3184.9,3184.4,1.912]
[1720917828692,1.08788948,3184.8,3184.4,1.912]
[1720917830353,1.08788948,3184.8,3184.4,5.117888]
[1720917830776,1.08783802,3184.7,3184.4,5.117888]
[1720917830957,1.08783802,3184.6,3184.4,5.117888]
[1720917831175,0.32846032,3184.9,3184.4,5.117888]
[1720917831176,1.08783802,3184.8,3184.4,5.117888]
[1720917831376,1.08783802,3184.8,3184.5,0.5117888]
[1720917832788,1.08783802,3184.8,3184.5,3.0239488]
[1720917833883,0.32846032,3184.9,3184.5,3.0239488]
[1720917834088,1.08784097,3184.8,3184.5,3.0239488]
[1720917834305,1.08784097,3184.7,3184.5,3.0239488]
[1720917834511,1.08784097,3184.6,3184.5,3.0239488]
[1720917834688,1.08784097,3184.8,3184.5,3.0239488]
[1720917835016,1.08784097,3184.7,3184.5,3.0239488]
[1720917835316,1.08784097,3184.8,3184.5,3.0239488]
[1720917835478,1.08784097,3184.7,3184.5,3.0239488]
[1720917835681,1.08784097,3184.8,3184.5,3.0239488]
[1720917836000,2.3127,3184.7,3184.0,2.84255]
[1720917836196,1.08784097,3184.6,3184.0,2.84255]
[1720917837328,2.3127,3184.7,3184.0,2.84255]
[1720917837482,1.0880062,3184.5,3184.0,2.84255]
[1720917837684,1.0880062,3184.4,3184.1,0.584255]
[1720917838008,1.08797796,3184.3,3184.1,0.584255]
[1720917838182,1.08797796,3184.2,3184.1,0.584255]
[1720917838383,1.08797796,3184.6,3184.1,0.584255]
[1720917838663,1.08797796,3184.6,3184.0,2.84255]
[1720917839713,1.08797796,3184.6,3184.0,5.29345]
[1720917839887,1.08797796,3184.8,3184.3,1.912]
[1720917840091,0.32846032,3184.9,3184.3,1.912]
[1720917840092,1.08797796,3184.7,3184.3,1.912]
[1720917840309,1.08790815,3184.6,3184.3,1.912]
[1720917840521,0.32846032,3184.9,3184.4,0.44871879]
[1720917840724,2.17579514,3184.8,3184.4,0.44871879]
[1720917840911,1.08789889,3184.7,3184.4,0.44871879]
[1720917841109,1.08789625,3184.8,3184.3,4.42432]
[1720917841110,1.08789889,3184.6,3184.3,1.912]
[1720917841314,1.08789889,3184.5,3184.3,1.912]
[1720917841516,1.08789889,3184.7,3184.3,1.912]
[1720917841696,1.08789625,3184.8,3184.3,1.912]
[1720917841697,1.08789889,3184.6,3184.3,1.912]
[1720917841897,1.08789889,3184.7,3184.3,1.912]
[1720917842098,1.08789889,3184.6,3184.3,1.912]
[1720917842299,1.08789889,3184.7,3184.3,2.354434]
[1720917842498,1.08789889,3184.6,3184.4,2.51224]
[1720917842696,1.08789889,3184.7,3184.5,2.51215]
[1720917843108,1.08789625,3184.8,3184.5,2.51215]
[1720917843310,1.08788099,3184.7,3184.5,2.51215]
[1720917843505,1.08788099,3184.7,3184.5,2.89034466]
[1720917844328,1.08788099,3184.7,3184.1,1.912]
[1720917844505,1.08788099,3184.7,3184.0,2.84252]
[1720917844708,1.08788099,3184.7,3184.6,0.797]
[1720917846027,1.08789625,3184.8,3184.7,2.51201]
[1720917846229,2.17564953,3184.8,3184.7,2.51201]
[1720917846417,2.17565279,3184.8,3184.7,3.094126]
[1720917846619,2.17565279,3184.8,3184.7,5.006126]
[1720917846794,1.08789625,3184.8,3184.7,5.006126]
[1720917846995,1.08789625,3184.8,3184.7,2.494116]
[1720917846996,2.17565194,3184.8,3184.7,2.494116]
[1720917847228,2.17565194,3184.8,3184.7,1.912]
[1720917849253,2.17565194,3184.8,3184.3,1.912]
[1720917849401,1.08775569,3184.7,3184.3,1.912]
[1720917849596,1.08789625,3184.8,3184.3,1.912]
[1720917849597,1.08794846,3184.6,3184.3,1.912]
[1720917849903,1.08793724,3184.5,3184.3,1.912]
[1720917850053,1.08793724,3184.5,3184.3,2.35444]
[1720917850222,1.08793724,3184.4,3184.3,2.35444]
[1720917850425,1.08793724,3184.7,3184.3,4.86675]
[1720917850649,1.08793724,3184.6,3184.4,2.35]
[1720917850822,1.08789625,3184.8,3184.5,4.42411]
[1720917851145,1.08777323,3184.7,3184.6,0.677411]
[1720917851726,1.08777323,3184.7,3184.6,3.189491]
[1720917852950,1.08789625,3184.8,3184.7,2.51201]
[1720917853122,1.08777686,3184.8,3184.7,2.57480069]
[1720917853326,1.08777686,3184.8,3184.7,5.02402]
[1720917853512,1.08777686,3184.8,3184.7,6.34164194]
[1720917854170,1.08777686,3184.8,3184.7,8.69164194]
[1720917854334,0.32845901,3185.3,3185.2,2.51161]
[1720917854533,0.32845901,3185.3,3185.2,4.42361]
[1720917854771,1.41609725,3185.3,3185.2,4.42361]
[1720917854931,1.41609725,3185.3,3185.2,4.865971]
[1720917856173,1.41605149,3185.3,3185.2,4.865971]
[1720917856332,2.50364406,3185.3,3185.2,4.865971]
[1720917857435,2.17518505,3185.3,3185.2,4.865971]
[1720917857632,2.17518505,3185.3,3185.2,9.727581]
[1720917857863,1.08759248,3185.3,3185.2,13.277581]
[1720917858846,1.08759248,3185.3,3185.2,10.765971]
[1720917859177,1.08759248,3185.3,3185.2,7.42361]
[1720917859902,1.08759248,3185.3,3185.2,10.48522]
[1720917860377,1.08759248,3185.3,3185.2,9.93522]
[1720917862200,1.08759248,3185.3,3185.2,12.28522]
[1720917872307,0.32849657,3185.9,3185.2,12.28522]
[1720917872308,0.32849657,3185.9,3185.8,2.51114]
[1720917872545,2.4912,3186.6,3186.2,2.51082]
[1720917872685,0.32855616,3186.6,3186.5,1.912]
[1720917872889,1.35678408,3186.6,3186.5,1.912]
[1720917873195,2.4912,3186.9,3186.5,1.912]
[1720917873400,1.08714548,3186.8,3186.5,1.912]
[1720917873608,2.4912,3186.9,3186.5,2.36054885]
[1720917873609,1.08714548,3186.7,3186.5,2.36054885]
[1720917873802,1.08714548,3186.8,3186.5,4.87111885]
[1720917874484,1.08714548,3186.8,3186.6,0.06275545]
[1720917874725,2.4912,3187.2,3186.6,2.57325545]
[1720917875013,1.08709971,3187.1,3186.6,2.57325545]
[1720917875222,2.4912,3187.2,3186.6,2.57325545]
[1720917875223,1.08709971,3187.0,3186.6,2.57325545]
[1720917875405,2.4912,3188.8,3186.9,1.912]
[1720917875606,2.4912,3188.6,3187.0,0.06274771]
[1720917875810,1.08703587,3188.5,3187.3,1.912]
[1720917876121,2.4912,3188.3,3187.3,1.912]
[1720917876415,2.4495,3188.1,3187.3,1.912]
[1720917876715,1.08700138,3188.0,3187.3,1.912]
[1720917877388,2.4495,3187.9,3187.3,1.912]
[1720917877585,1.08700138,3187.8,3187.3,1.912]
[1720917877828,1.08700138,3187.8,3187.3,1.90470338]
[1720917878025,0.35365014,3187.7,3187.3,1.90470338]
[1720917878226,1.08700138,3187.6,3187.3,1.90470338]
[1720917879326,1.08707057,3187.5,3187.3,1.90470338]
[1720917879631,1.08707057,3187.4,3187.3,1.90470338]
[1720917879836,1.08707057,3187.6,3187.3,1.90470338]
[1720917881359,1.08707057,3187.6,3186.9,1.912]
[1720917882658,1.08708825,3187.5,3186.9,1.912]
[1720917882830,1.08708825,3187.4,3186.9,1.912]
[1720917883154,1.08708825,3187.3,3186.9,1.912]
[1720917883316,1.08708825,3187.2,3186.9,1.912]
[1720917883513,0.35365014,3187.7,3186.9,1.912]
[1720917883514,1.08708825,3187.1,3186.9,1.912]
[1720917883774,0.35365014,3187.7,3186.9,1.912]
[1720917883775,2.4495,3187.6,3186.9,1.912]
[1720917883967,1.36741504,3187.5,3186.9,1.912]
[1720917884252,1.08710003,3187.4,3186.9,1.912]
[1720917886181,0.28031501,3187.5,3186.9,1.912]
[1720917886182,1.08708231,3187.3,3186.9,1.912]
[1720917886482,0.28031501,3187.5,3186.9,1.912]
[1720917886483,1.08711446,3187.2,3186.9,1.912]
[1720917886643,1.08711446,3187.1,3186.9,1.912]
[1720917886837,1.08711446,3187.4,3186.9,1.912]
[1720917889065,1.08711446,3187.4,3186.5,3.0]
[1720917889066,1.08711446,3187.4,3186.5,1.912]
[1720917889276,1.08718394,3187.3,3186.5,1.912]
[1720917889572,1.44085233,3187.2,3186.5,1.912]
[1720917889768,1.08718394,3187.1,3186.5,1.912]
[1720917891792,1.08718394,3187.1,3186.4,1.912]
[1720917892549,1.08731539,3187.0,3186.4,1.912]
[1720917892860,1.08731539,3186.9,3186.4,1.912]
[1720917893061,1.08731539,3186.8,3186.4,1.912]
[1720917893248,1.08731539,3186.7,3186.4,1.912]
[1720917893444,0.35366839,3187.2,3186.4,1.912]
[1720917893648,1.08719406,3187.1,3186.4,1.912]
[1720917893846,0.35366839,3187.2,3186.4,1.912]
[1720917893847,1.08719406,3187.0,3186.4,1.912]
[1720917894078,1.08719406,3186.9,3186.4,1.912]
[1720917894396,1.08719406,3186.8,3186.4,1.912]
[1720917894549,0.35366839,3187.2,3186.4,1.912]
[1720917894550,1.08719406,3187.1,3186.4,1.912]
[1720917894748,1.08719406,3187.0,3186.4,1.912]
[1720917894949,1.08719406,3187.1,3186.4,1.912]
[1720917895974,1.08726308,3187.0,3186.4,1.912]
[1720917896150,1.08726308,3186.9,3186.4,1.912]
[1720917896350,1.08726308,3187.1,3186.4,1.912]
[1720917898589,1.08726308,3187.1,3187.0,0.796]
[1720917899093,0.35366839,3187.2,3187.0,0.796]
[1720917899395,1.08725043,3187.1,3187.0,0.796]
[1720917899599,0.35366839,3187.2,3187.0,0.796]
[1720917899752,1.0872648,3187.1,3187.0,0.796]
[1720917900778,3.4137648,3187.1,3187.0,0.796]
[1720917900955,3.79050812,3187.1,3187.0,0.796]
[1720917901647,3.79053081,3187.1,3187.0,0.796]
[1720917902674,3.79053916,3187.1,3187.0,0.796]
[1720917902992,3.79053916,3187.1,3185.8,4.76584]
[1720917903289,3.79053916,3187.1,3186.9,0.796]
[1720917903290,1.08729584,3187.0,3186.9,0.796]
[1720917903454,1.46634976,3187.0,3186.9,0.796]
[1720917904203,1.46634976,3187.0,3186.7,0.796]
[1720917904499,1.08729584,3186.9,3186.7,0.796]
[1720917904652,1.08729584,3186.8,3186.7,0.796]
[1720917904993,1.08741865,3186.8,3186.7,0.796]
[1720917908065,0.37905392,3187.0,3186.7,0.796]
[1720917908297,1.3578873,3186.9,3186.7,0.796]
[1720917908604,1.08733191,3186.8,3186.7,0.796]
[1720917911368,2.4632,3187.7,3186.7,0.796]
[1720917911589,1.08713288,3187.6,3187.4,0.796]
[1720917911762,1.44216617,3187.5,3187.4,0.796]
[1720917911976,1.4421589,3187.5,3187.4,0.796]
[1720917912613,1.4421589,3187.5,3186.6,2.51045]
[1720917912614,1.4421589,3187.5,3186.7,1.91]
[1720917912804,1.08712561,3187.4,3186.7,1.91]
[1720917913002,1.08712561,3187.3,3186.7,1.91]
[1720917913206,1.08712561,3187.2,3186.7,1.91]
[1720917913417,1.08712561,3187.1,3186.7,1.91]
[1720917913585,1.08712561,3187.6,3186.7,1.91]
[1720917913781,1.08712561,3187.5,3186.7,1.91]
[1720917913997,1.08712561,3187.4,3186.7,1.91]
[1720917914196,1.08712561,3187.5,3186.7,1.91]
[1720917914493,0.35503256,3187.6,3186.7,1.91]
[1720917914494,1.08709726,3187.4,3186.7,1.91]
[1720917914819,0.35503256,3187.6,3186.7,1.91]
[1720917914820,1.08710898,3187.3,3186.7,1.91]
[1720917915021,1.08710898,3187.2,3187.0,16.004822]